[Event "Titled Tuesday Blitz October 19 2021"]
[White "Gurvich, Vitaly"]
[Black "Nogerbek, Kazybek"]
[WhiteFideId "24164852"]
[BlackFideId "13710427"]
[WhiteElo "2275"]
[BlackElo "2436"]
[Result "0-1"]
[Round "03"]
[TimeControl "180+1"]
[Date "2021.10.19"]
[WhiteClock "0:00:12"]
[BlackClock "0:00:54"]

1. e4 {[%clk 0:03:00]}  c6 {[%clk 0:02:57]} 2. d4 {[%clk 0:03:00]}  d5 {[%clk 0:02:58]} 3. exd5 {[%clk 0:03:01]}  cxd5 {[%clk 0:02:58]} 4. Bd3 {[%clk 0:03:01]}  Nc6 {[%clk 0:02:59]} 5. c3 {[%clk 0:03:01]}  g6 {[%clk 0:02:58]} 6. h3 {[%clk 0:03:01]}  Bg7 {[%clk 0:02:57]} 7. Nf3 {[%clk 0:03:02]}  Nh6 {[%clk 0:02:57]} 8. O-O {[%clk 0:03:02]}  Bf5 {[%clk 0:02:58]} 9. Re1 {[%clk 0:02:47]}  Bxd3 {[%clk 0:02:57]} 10. Qxd3 {[%clk 0:02:48]}  Nf5 {[%clk 0:02:57]} 11. Nbd2 {[%clk 0:02:43]}  O-O {[%clk 0:02:57]} 12. b3 {[%clk 0:02:42]}  Rc8 {[%clk 0:02:56]} 13. Bb2 {[%clk 0:02:42]}  e6 {[%clk 0:02:52]} 14. Rad1 {[%clk 0:02:42]}  Qb6 {[%clk 0:02:47]} 15. g3 {[%clk 0:02:38]}  Rfd8 {[%clk 0:02:46]} 16. Kg2 {[%clk 0:02:38]}  Rc7 {[%clk 0:02:39]} 17. Ba1 {[%clk 0:02:36]}  Rdc8 {[%clk 0:02:39]} 18. h4 {[%clk 0:02:10]}  Qa5 {[%clk 0:02:22]} 19. Qb1 {[%clk 0:02:08]}  Nb8 {[%clk 0:02:17]} 20. Rc1 {[%clk 0:01:29]}  Nd7 {[%clk 0:02:08]} 21. Bb2 {[%clk 0:00:47]}  Nd6 {[%clk 0:01:51]} 22. a4 {[%clk 0:00:44]}  a6 {[%clk 0:01:46]} 23. Qd3 {[%clk 0:00:43]}  b5 {[%clk 0:01:44]} 24. axb5 {[%clk 0:00:43]}  Qxb5 {[%clk 0:01:45]} 25. Qxb5 {[%clk 0:00:33]}  axb5 {[%clk 0:01:44]} 26. b4 {[%clk 0:00:29]}  Nc4 {[%clk 0:01:42]} 27. Nxc4 {[%clk 0:00:29]}  Rxc4 {[%clk 0:01:24]} 28. Ra1 {[%clk 0:00:28]}  Nb6 {[%clk 0:01:24]} 29. Nd2 {[%clk 0:00:28]}  R4c6 {[%clk 0:01:22]} 30. Ra6 {[%clk 0:00:21]}  Na4 {[%clk 0:01:22]} 31. Rxc6 {[%clk 0:00:21]}  Rxc6 {[%clk 0:01:23]} 32. Ba1 {[%clk 0:00:21]}  Nxc3 {[%clk 0:01:02]} 33. Rc1 {[%clk 0:00:20]}  Bxd4 {[%clk 0:01:03]} 34. Nb1 {[%clk 0:00:21]}  Nxb1 {[%clk 0:01:03]} 35. Rxc6 {[%clk 0:00:20]}  Bxa1 {[%clk 0:01:04]} 36. Rc1 {[%clk 0:00:21]}  Bc3 {[%clk 0:01:03]} 37. Rxb1 {[%clk 0:00:21]}  Kf8 {[%clk 0:00:58]} 38. Kf3 {[%clk 0:00:21]}  Ke7 {[%clk 0:00:58]} 39. Rc1 {[%clk 0:00:21]}  d4 {[%clk 0:00:53]} 40. Ke4 {[%clk 0:00:19]}  Kd6 {[%clk 0:00:54]} 41. Rb1 {[%clk 0:00:18]}  f5+ {[%clk 0:00:54]} 42. Kd3 {[%clk 0:00:18]}  e5 {[%clk 0:00:53]} 43. f3 {[%clk 0:00:13]}  Kd5 {[%clk 0:00:53]} 44. Rc1 {[%clk 0:00:11]}  e4+ {[%clk 0:00:54]} 45. fxe4+ {[%clk 0:00:10]}  fxe4+ {[%clk 0:00:54]} 46. Kc2 {[%clk 0:00:11]}  Kc4 {[%clk 0:00:54]} 47. Rf1 {[%clk 0:00:11]}  d3+ {[%clk 0:00:54]} 48. Kd1 {[%clk 0:00:12]}  e3 {[%clk 0:00:54]} 0-1


[Site "https://www.chess.com"]

[Event "Titled Tuesday Blitz October 19 2021"]
[White "Ibarra Jerez, Jose Carlos"]
[Black "Gelman, Alexander"]
[WhiteFideId "2226332"]
[BlackFideId "4118316"]
[WhiteElo "2626"]
[BlackElo "2375"]
[Result "1-0"]
[Round "03"]
[TimeControl "180+1"]
[Date "2021.10.19"]
[WhiteClock "0:00:05"]
[BlackClock "0:00:07"]

1. e4 {[%clk 0:02:59]}  c5 {[%clk 0:03:00]} 2. Nc3 {[%clk 0:02:57]}  e6 {[%clk 0:03:00]} 3. Nf3 {[%clk 0:02:54]}  a6 {[%clk 0:03:00]} 4. d4 {[%clk 0:02:54]}  cxd4 {[%clk 0:03:00]} 5. Nxd4 {[%clk 0:02:55]}  d6 {[%clk 0:03:00]} 6. Be3 {[%clk 0:02:53]}  Nf6 {[%clk 0:03:00]} 7. f3 {[%clk 0:02:52]}  b5 {[%clk 0:02:59]} 8. a4 {[%clk 0:02:51]}  b4 {[%clk 0:02:58]} 9. Na2 {[%clk 0:02:49]}  Bb7 {[%clk 0:02:32]} 10. Qd2 {[%clk 0:02:46]}  d5 {[%clk 0:02:13]} 11. e5 {[%clk 0:02:44]}  Nfd7 {[%clk 0:02:13]} 12. f4 {[%clk 0:02:43]}  Nc5 {[%clk 0:01:56]} 13. Bd3 {[%clk 0:02:38]}  Nbd7 {[%clk 0:01:45]} 14. Nxb4 {[%clk 0:02:22]}  Qc7 {[%clk 0:01:39]} 15. a5 {[%clk 0:02:18]}  g5 {[%clk 0:01:38]} 16. g3 {[%clk 0:01:55]}  gxf4 {[%clk 0:01:31]} 17. gxf4 {[%clk 0:01:53]}  Be7 {[%clk 0:01:31]} 18. Rg1 {[%clk 0:01:40]}  Rb8 {[%clk 0:00:57]} 19. c3 {[%clk 0:01:32]}  f6 {[%clk 0:00:52]} 20. exf6 {[%clk 0:01:20]}  Nxf6 {[%clk 0:00:53]} 21. Nf3 {[%clk 0:01:04]}  Nb3 {[%clk 0:00:48]} 22. Qd1 {[%clk 0:00:53]}  Nxa1 {[%clk 0:00:47]} 23. Qxa1 {[%clk 0:00:50]}  Bc8 {[%clk 0:00:28]} 24. Ne5 {[%clk 0:00:36]}  Rxb4 {[%clk 0:00:27]} 25. cxb4 {[%clk 0:00:34]}  Bxb4+ {[%clk 0:00:28]} 26. Bd2 {[%clk 0:00:31]}  Qc5 {[%clk 0:00:25]} 27. Rg3 {[%clk 0:00:09]}  Nh5 {[%clk 0:00:24]} 28. Rf3 {[%clk 0:00:07]}  Rg8 {[%clk 0:00:16]} 29. Qa4+ {[%clk 0:00:07]}  Kd8 {[%clk 0:00:13]} 30. Qxb4 {[%clk 0:00:06]}  Rg1+ {[%clk 0:00:13]} 31. Bf1 {[%clk 0:00:06]}  Qc2 {[%clk 0:00:08]} 32. Qb6+ {[%clk 0:00:04]}  Ke8 {[%clk 0:00:07]} 33. Qxg1 {[%clk 0:00:05]} 1-0


[Site "https://www.chess.com"]

[Event "Titled Tuesday Blitz October 19 2021"]
[White "Lugovskoy, Maxim"]
[Black "atbenina64"]
[WhiteFideId "24126454"]
[WhiteElo "2466"]
[BlackElo "2526"]
[Result "0-1"]
[Round "03"]
[TimeControl "180+1"]
[Date "2021.10.19"]
[WhiteClock "0:00:01"]
[BlackClock "0:00:04"]

1. e4 {[%clk 0:03:00]}  c5 {[%clk 0:02:58]} 2. Nf3 {[%clk 0:03:00]}  e6 {[%clk 0:02:56]} 3. c3 {[%clk 0:03:00]}  Nf6 {[%clk 0:02:55]} 4. e5 {[%clk 0:03:01]}  Nd5 {[%clk 0:02:56]} 5. d4 {[%clk 0:03:01]}  cxd4 {[%clk 0:02:57]} 6. cxd4 {[%clk 0:03:02]}  d6 {[%clk 0:02:57]} 7. Bc4 {[%clk 0:03:02]}  Nc6 {[%clk 0:02:57]} 8. O-O {[%clk 0:03:02]}  Be7 {[%clk 0:02:55]} 9. Qe2 {[%clk 0:02:59]}  O-O {[%clk 0:02:56]} 10. Rd1 {[%clk 0:03:00]}  a6 {[%clk 0:02:51]} 11. Bd2 {[%clk 0:03:00]}  b5 {[%clk 0:02:48]} 12. Bb3 {[%clk 0:03:00]}  Bb7 {[%clk 0:02:47]} 13. Nc3 {[%clk 0:03:00]}  Nxc3 {[%clk 0:02:33]} 14. Bxc3 {[%clk 0:03:01]}  d5 {[%clk 0:02:31]} 15. Bd2 {[%clk 0:02:59]}  Re8 {[%clk 0:02:31]} 16. Bc2 {[%clk 0:02:57]}  Qb6 {[%clk 0:02:29]} 17. Be3 {[%clk 0:02:55]}  Rac8 {[%clk 0:02:25]} 18. h4 {[%clk 0:02:51]}  a5 {[%clk 0:02:16]} 19. Rac1 {[%clk 0:02:45]}  Nb4 {[%clk 0:02:13]} 20. Bb1 {[%clk 0:02:43]}  Rxc1 {[%clk 0:02:14]} 21. Rxc1 {[%clk 0:02:43]}  Rc8 {[%clk 0:02:15]} 22. Rxc8+ {[%clk 0:02:41]}  Bxc8 {[%clk 0:02:16]} 23. Bg5 {[%clk 0:02:41]}  Bf8 {[%clk 0:02:04]} 24. h5 {[%clk 0:02:40]}  Qc7 {[%clk 0:01:56]} 25. Bd2 {[%clk 0:02:36]}  Qc4 {[%clk 0:01:51]} 26. Qe3 {[%clk 0:02:26]}  g6 {[%clk 0:01:19]} 27. Ng5 {[%clk 0:01:33]}  Bd7 {[%clk 0:00:37]} 28. hxg6 {[%clk 0:01:27]}  hxg6 {[%clk 0:00:35]} 29. Qh3 {[%clk 0:01:23]}  Bg7 {[%clk 0:00:34]} 30. Qh7+ {[%clk 0:01:13]}  Kf8 {[%clk 0:00:32]} 31. Nxf7 {[%clk 0:01:13]}  Qxd4 {[%clk 0:00:30]} 32. Qxg6 {[%clk 0:00:40]}  Qxd2 {[%clk 0:00:16]} 33. Ng5 {[%clk 0:00:39]}  Qe1+ {[%clk 0:00:16]} 34. Kh2 {[%clk 0:00:37]}  Qxe5+ {[%clk 0:00:14]} 35. g3 {[%clk 0:00:37]}  Ke7 {[%clk 0:00:10]} 36. Qf7+ {[%clk 0:00:24]}  Kd6 {[%clk 0:00:10]} 37. Qh5 {[%clk 0:00:12]}  Qxb2 {[%clk 0:00:08]} 38. Qg6 {[%clk 0:00:03]}  Qxf2+ {[%clk 0:00:07]} 39. Kh3 {[%clk 0:00:03]}  Qf1+ {[%clk 0:00:06]} 40. Kh2 {[%clk 0:00:03]}  Qf6 {[%clk 0:00:07]} 41. Qh5 {[%clk 0:00:01]}  Kc7 {[%clk 0:00:04]} 42. Qg4 {[%clk 0:00:02]}  Nc6 {[%clk 0:00:04]} 43. Nf3 {[%clk 0:00:01]}  Qb2+ {[%clk 0:00:04]} 44. Kh3 {[%clk 0:00:01]}  e5 {[%clk 0:00:04]} 0-1


[Site "https://www.chess.com"]

[Event "Titled Tuesday Blitz October 19 2021"]
[White "Mischuk, Dmitry"]
[Black "Salinas Herrera, Pablo"]
[WhiteFideId "14118734"]
[BlackFideId "3407128"]
[WhiteElo "2369"]
[BlackElo "2541"]
[Result "1/2-1/2"]
[Round "03"]
[TimeControl "180+1"]
[Date "2021.10.19"]
[WhiteClock "0:00:50"]
[BlackClock "0:00:19"]

1. e4 {[%clk 0:03:00]}  e5 {[%clk 0:02:58]} 2. Nf3 {[%clk 0:02:59]}  Nc6 {[%clk 0:02:50]} 3. Bb5 {[%clk 0:02:58]}  a6 {[%clk 0:02:49]} 4. Ba4 {[%clk 0:02:58]}  d6 {[%clk 0:02:42]} 5. Bxc6+ {[%clk 0:02:51]}  bxc6 {[%clk 0:02:42]} 6. d4 {[%clk 0:02:52]}  exd4 {[%clk 0:02:43]} 7. Nxd4 {[%clk 0:02:51]}  c5 {[%clk 0:02:42]} 8. Nb3 {[%clk 0:02:49]}  g6 {[%clk 0:02:42]} 9. O-O {[%clk 0:02:48]}  Bg7 {[%clk 0:02:42]} 10. Nc3 {[%clk 0:02:45]}  Ne7 {[%clk 0:02:41]} 11. Bf4 {[%clk 0:02:42]}  O-O {[%clk 0:02:36]} 12. Qd2 {[%clk 0:02:41]}  f5 {[%clk 0:02:27]} 13. Bh6 {[%clk 0:02:34]}  Bb7 {[%clk 0:02:23]} 14. Bxg7 {[%clk 0:02:33]}  Kxg7 {[%clk 0:02:24]} 15. Rfe1 {[%clk 0:02:29]}  fxe4 {[%clk 0:02:22]} 16. Na5 {[%clk 0:02:20]}  Rb8 {[%clk 0:02:06]} 17. Nxb7 {[%clk 0:02:15]}  Rxb7 {[%clk 0:02:07]} 18. Nxe4 {[%clk 0:02:15]}  Nc6 {[%clk 0:01:44]} 19. Ng5 {[%clk 0:02:14]}  Nd4 {[%clk 0:01:44]} 20. c3 {[%clk 0:02:10]}  h6 {[%clk 0:01:44]} 21. cxd4 {[%clk 0:02:08]}  Qxg5 {[%clk 0:01:43]} 22. Qxg5 {[%clk 0:02:04]}  hxg5 {[%clk 0:01:44]} 23. dxc5 {[%clk 0:01:55]}  Rxb2 {[%clk 0:01:43]} 24. f3 {[%clk 0:01:51]}  g4 {[%clk 0:01:40]} 25. Re7+ {[%clk 0:01:43]}  Kh6 {[%clk 0:01:40]} 26. Rxc7 {[%clk 0:01:24]}  gxf3 {[%clk 0:01:37]} 27. gxf3 {[%clk 0:01:24]}  Rxf3 {[%clk 0:01:27]} 28. cxd6 {[%clk 0:01:22]}  Rff2 {[%clk 0:01:22]} 29. d7 {[%clk 0:01:20]}  Rg2+ {[%clk 0:01:22]} 30. Kf1 {[%clk 0:01:19]}  Rxh2 {[%clk 0:01:21]} 31. Kg1 {[%clk 0:01:19]}  Rbg2+ {[%clk 0:01:19]} 32. Kf1 {[%clk 0:01:19]}  Rd2 {[%clk 0:01:18]} 33. Kg1 {[%clk 0:01:18]}  Rh5 {[%clk 0:01:13]} 34. Re1 {[%clk 0:01:12]}  Rhd5 {[%clk 0:01:11]} 35. Re6 {[%clk 0:01:08]}  Rxa2 {[%clk 0:01:07]} 36. Re1 {[%clk 0:01:01]}  a5 {[%clk 0:00:42]} 37. Ra7 {[%clk 0:01:00]}  a4 {[%clk 0:00:39]} 38. Rf1 {[%clk 0:01:00]}  Rdd2 {[%clk 0:00:29]} 39. Rf8 {[%clk 0:00:59]}  Ra1+ {[%clk 0:00:17]} 40. Rf1 {[%clk 0:00:59]}  Ra3 {[%clk 0:00:10]} 41. Rf8 {[%clk 0:00:55]}  Rg3+ {[%clk 0:00:09]} 42. Kf1 {[%clk 0:00:54]}  Rgd3 {[%clk 0:00:10]} 43. d8=Q {[%clk 0:00:52]}  Rxd8 {[%clk 0:00:10]} 44. Rxd8 {[%clk 0:00:53]}  Rxd8 {[%clk 0:00:11]} 45. Rxa4 {[%clk 0:00:53]}  Rd2 {[%clk 0:00:11]} 46. Ra5 {[%clk 0:00:52]}  Rb2 {[%clk 0:00:11]} 47. Kg1 {[%clk 0:00:52]}  g5 {[%clk 0:00:11]} 48. Ra4 {[%clk 0:00:51]}  Kh5 {[%clk 0:00:12]} 49. Rc4 {[%clk 0:00:51]}  g4 {[%clk 0:00:12]} 50. Ra4 {[%clk 0:00:51]}  Kh4 {[%clk 0:00:12]} 51. Ra3 {[%clk 0:00:51]}  Rb1+ {[%clk 0:00:11]} 52. Kg2 {[%clk 0:00:51]}  Rb2+ {[%clk 0:00:12]} 53. Kg1 {[%clk 0:00:51]}  Re2 {[%clk 0:00:12]} 54. Rb3 {[%clk 0:00:51]}  Re4 {[%clk 0:00:12]} 55. Kg2 {[%clk 0:00:50]}  Rf4 {[%clk 0:00:12]} 56. Rb8 {[%clk 0:00:50]}  Rf5 {[%clk 0:00:11]} 57. Rh8+ {[%clk 0:00:49]}  Rh5 {[%clk 0:00:12]} 58. Rxh5+ {[%clk 0:00:48]}  Kxh5 {[%clk 0:00:13]} 59. Kg3 {[%clk 0:00:49]}  Kg5 {[%clk 0:00:14]} 60. Kg2 {[%clk 0:00:49]}  Kf4 {[%clk 0:00:15]} 61. Kf2 {[%clk 0:00:50]}  g3+ {[%clk 0:00:15]} 62. Kg2 {[%clk 0:00:50]}  Kg4 {[%clk 0:00:16]} 63. Kg1 {[%clk 0:00:50]}  Kf3 {[%clk 0:00:17]} 64. Kf1 {[%clk 0:00:50]}  g2+ {[%clk 0:00:18]} 65. Kg1 {[%clk 0:00:50]}  Kg3 {[%clk 0:00:19]} 1/2-1/2


[Site "https://www.chess.com"]

[Event "Titled Tuesday Blitz October 19 2021"]
[White "Moskalenko, Alexander"]
[Black "Horobetz, Graham"]
[WhiteFideId "4155351"]
[BlackFideId "2047322"]
[WhiteElo "2515"]
[BlackElo "2618"]
[Result "1-0"]
[Round "03"]
[TimeControl "180+1"]
[Date "2021.10.19"]
[WhiteClock "0:02:53"]
[BlackClock "0:02:21"]

1. e4 {[%clk 0:03:00]}  c5 {[%clk 0:02:59]} 2. Nf3 {[%clk 0:02:58]}  d6 {[%clk 0:02:59]} 3. d4 {[%clk 0:02:59]}  cxd4 {[%clk 0:03:00]} 4. Nxd4 {[%clk 0:02:59]}  Nf6 {[%clk 0:03:00]} 5. Nc3 {[%clk 0:03:00]}  a6 {[%clk 0:03:01]} 6. Be3 {[%clk 0:02:58]}  e5 {[%clk 0:03:01]} 7. Nf3 {[%clk 0:02:57]}  Be7 {[%clk 0:02:59]} 8. Bc4 {[%clk 0:02:57]}  Be6 {[%clk 0:02:58]} 9. Bb3 {[%clk 0:02:56]}  O-O {[%clk 0:02:55]} 10. O-O {[%clk 0:02:56]}  h6 {[%clk 0:02:46]} 11. Nh4 {[%clk 0:02:53]}  Qb6 {[%clk 0:02:21]} 1-0


[Site "https://www.chess.com"]

[Event "Titled Tuesday Blitz October 19 2021"]
[White "Nakamura, Hikaru"]
[Black "Khanin, Semen"]
[WhiteFideId "2016192"]
[BlackFideId "4111990"]
[WhiteElo "2884"]
[BlackElo "2436"]
[Result "1-0"]
[Round "03"]
[TimeControl "180+1"]
[Date "2021.10.19"]
[WhiteClock "0:01:42"]
[BlackClock "0:00:06"]

1. Nf3 {[%clk 0:03:00]}  Nf6 {[%clk 0:02:59]} 2. e3 {[%clk 0:03:00]}  e6 {[%clk 0:02:56]} 3. b3 {[%clk 0:03:00]}  b6 {[%clk 0:02:53]} 4. Bb2 {[%clk 0:03:01]}  Bb7 {[%clk 0:02:53]} 5. d4 {[%clk 0:03:01]}  d5 {[%clk 0:02:52]} 6. Nbd2 {[%clk 0:03:00]}  Nbd7 {[%clk 0:02:52]} 7. c4 {[%clk 0:03:00]}  Bd6 {[%clk 0:02:50]} 8. cxd5 {[%clk 0:02:57]}  exd5 {[%clk 0:02:50]} 9. a4 {[%clk 0:02:57]}  a6 {[%clk 0:02:46]} 10. Ba3 {[%clk 0:02:57]}  c5 {[%clk 0:02:44]} 11. Bd3 {[%clk 0:02:56]}  O-O {[%clk 0:02:44]} 12. Qb1 {[%clk 0:02:54]}  Qe7 {[%clk 0:02:43]} 13. O-O {[%clk 0:02:53]}  Rac8 {[%clk 0:02:39]} 14. dxc5 {[%clk 0:02:53]}  bxc5 {[%clk 0:02:38]} 15. Bf5 {[%clk 0:02:53]}  g6 {[%clk 0:02:37]} 16. Bh3 {[%clk 0:02:53]}  Rb8 {[%clk 0:02:34]} 17. Qc2 {[%clk 0:02:50]}  Ne5 {[%clk 0:02:24]} 18. Nxe5 {[%clk 0:02:41]}  Qxe5 {[%clk 0:02:24]} 19. g3 {[%clk 0:02:41]}  d4 {[%clk 0:02:16]} 20. Nc4 {[%clk 0:02:36]}  Qd5 {[%clk 0:01:33]} 21. f3 {[%clk 0:02:35]}  dxe3 {[%clk 0:01:32]} 22. Rad1 {[%clk 0:02:27]}  Qh5 {[%clk 0:01:31]} 23. Rxd6 {[%clk 0:02:27]}  Qxh3 {[%clk 0:01:18]} 24. Rxf6 {[%clk 0:02:27]}  Rfe8 {[%clk 0:01:18]} 25. Bb2 {[%clk 0:02:26]}  e2 {[%clk 0:01:15]} 26. Re1 {[%clk 0:02:26]}  Rbd8 {[%clk 0:01:02]} 27. Nd6 {[%clk 0:02:24]}  Rxd6 {[%clk 0:01:01]} 28. Rxe2 {[%clk 0:02:20]}  Rxe2 {[%clk 0:00:37]} 29. Qxe2 {[%clk 0:02:20]}  Rxf6 {[%clk 0:00:37]} 30. Bxf6 {[%clk 0:01:44]}  Qe6 {[%clk 0:00:36]} 31. Qb2 {[%clk 0:01:43]}  Bxf3 {[%clk 0:00:30]} 32. Kf2 {[%clk 0:01:43]}  Bd5 {[%clk 0:00:25]} 33. Qc3 {[%clk 0:01:42]}  Qf5+ {[%clk 0:00:20]} 34. Ke1 {[%clk 0:01:41]}  Qe4+ {[%clk 0:00:15]} 35. Kd2 {[%clk 0:01:41]}  Qg2+ {[%clk 0:00:15]} 36. Kc1 {[%clk 0:01:42]}  Qh1+ {[%clk 0:00:14]} 37. Kb2 {[%clk 0:01:42]}  Qxh2+ {[%clk 0:00:14]} 38. Ka3 {[%clk 0:01:43]}  Qf2 {[%clk 0:00:06]} 39. Qe5 {[%clk 0:01:42]} 1-0


[Site "https://www.chess.com"]

[Event "Titled Tuesday Blitz October 19 2021"]
[White "Neelotpal, Das"]
[Black "Nagy, Gabor"]
[WhiteFideId "5003512"]
[BlackFideId "737119"]
[WhiteElo "2427"]
[BlackElo "2534"]
[Result "0-1"]
[Round "03"]
[TimeControl "180+1"]
[Date "2021.10.19"]
[WhiteClock "0:00:02"]
[BlackClock "0:00:49"]

1. d4 {[%clk 0:03:00]}  g6 {[%clk 0:02:59]} 2. e4 {[%clk 0:03:00]}  Bg7 {[%clk 0:02:59]} 3. Nc3 {[%clk 0:03:00]}  d6 {[%clk 0:03:00]} 4. Be3 {[%clk 0:03:00]}  a6 {[%clk 0:02:59]} 5. Qd2 {[%clk 0:03:00]}  b5 {[%clk 0:02:59]} 6. h4 {[%clk 0:02:59]}  h5 {[%clk 0:02:58]} 7. f3 {[%clk 0:02:56]}  Nd7 {[%clk 0:02:55]} 8. Nh3 {[%clk 0:02:55]}  c5 {[%clk 0:02:51]} 9. Ng5 {[%clk 0:02:49]}  cxd4 {[%clk 0:02:49]} 10. Bxd4 {[%clk 0:02:49]}  Ngf6 {[%clk 0:02:50]} 11. O-O-O {[%clk 0:02:42]}  Bb7 {[%clk 0:02:48]} 12. Kb1 {[%clk 0:02:42]}  Rc8 {[%clk 0:02:48]} 13. Qf2 {[%clk 0:02:20]}  O-O {[%clk 0:02:44]} 14. g4 {[%clk 0:02:13]}  b4 {[%clk 0:02:43]} 15. Nd5 {[%clk 0:02:08]}  Bxd5 {[%clk 0:02:35]} 16. exd5 {[%clk 0:02:06]}  Ne5 {[%clk 0:02:33]} 17. gxh5 {[%clk 0:02:05]}  Nxh5 {[%clk 0:02:32]} 18. Bh3 {[%clk 0:02:01]}  Rc4 {[%clk 0:02:27]} 19. f4 {[%clk 0:02:01]}  Nd7 {[%clk 0:02:18]} 20. Bxg7 {[%clk 0:01:59]}  Kxg7 {[%clk 0:02:09]} 21. f5 {[%clk 0:01:50]}  Rf4 {[%clk 0:02:09]} 22. Qe3 {[%clk 0:01:36]}  Nc5 {[%clk 0:01:59]} 23. fxg6 {[%clk 0:01:24]}  fxg6 {[%clk 0:02:00]} 24. Rde1 {[%clk 0:01:06]}  Rxh4 {[%clk 0:01:55]} 25. Be6 {[%clk 0:00:51]}  Rxh1 {[%clk 0:01:52]} 26. Rxh1 {[%clk 0:00:51]}  Rf6 {[%clk 0:01:48]} 27. Bg4 {[%clk 0:00:50]}  Qf8 {[%clk 0:01:45]} 28. Nf3 {[%clk 0:00:43]}  Nf4 {[%clk 0:01:40]} 29. Ng5 {[%clk 0:00:27]}  Nh5 {[%clk 0:01:20]} 30. Qe1 {[%clk 0:00:26]}  a5 {[%clk 0:01:13]} 31. Bxh5 {[%clk 0:00:16]}  gxh5 {[%clk 0:01:13]} 32. a3 {[%clk 0:00:12]}  bxa3 {[%clk 0:01:12]} 33. Qe2 {[%clk 0:00:11]}  axb2 {[%clk 0:00:59]} 34. Qxh5 {[%clk 0:00:10]}  Rf1+ {[%clk 0:01:00]} 35. Rxf1 {[%clk 0:00:09]}  Qxf1+ {[%clk 0:01:00]} 36. Kxb2 {[%clk 0:00:09]}  Qf6+ {[%clk 0:01:00]} 37. Kb1 {[%clk 0:00:09]}  Qg6 {[%clk 0:01:00]} 38. Qg4 {[%clk 0:00:08]}  a4 {[%clk 0:00:54]} 39. Qd4+ {[%clk 0:00:06]}  Kg8 {[%clk 0:00:53]} 40. Qg4 {[%clk 0:00:03]}  a3 {[%clk 0:00:50]} 41. Qc8+ {[%clk 0:00:03]}  Kg7 {[%clk 0:00:50]} 42. Nf3 {[%clk 0:00:03]}  a2+ {[%clk 0:00:49]} 43. Kb2 {[%clk 0:00:03]}  Qf6+ {[%clk 0:00:49]} 44. Kxa2 {[%clk 0:00:02]}  Qxf3 {[%clk 0:00:49]} 0-1


[Site "https://www.chess.com"]

[Event "Titled Tuesday Blitz October 19 2021"]
[White "Praggnanandhaa R"]
[Black "Tristan, Leonardo"]
[WhiteFideId "25059530"]
[BlackFideId "113816"]
[WhiteElo "2599"]
[BlackElo "2404"]
[Result "1-0"]
[Round "03"]
[TimeControl "180+1"]
[Date "2021.10.19"]
[WhiteClock "0:00:19"]
[BlackClock "0:00:05"]

1. e4 {[%clk 0:03:00]}  d5 {[%clk 0:03:00]} 2. exd5 {[%clk 0:02:57]}  Qxd5 {[%clk 0:03:01]} 3. Nc3 {[%clk 0:02:57]}  Qa5 {[%clk 0:03:01]} 4. d4 {[%clk 0:02:57]}  Nf6 {[%clk 0:03:01]} 5. Nf3 {[%clk 0:02:57]}  Bf5 {[%clk 0:03:00]} 6. Ne5 {[%clk 0:02:57]}  c6 {[%clk 0:03:00]} 7. g4 {[%clk 0:02:50]}  Be6 {[%clk 0:03:00]} 8. Bg2 {[%clk 0:02:32]}  Nbd7 {[%clk 0:02:59]} 9. Nxd7 {[%clk 0:02:32]}  Bxd7 {[%clk 0:02:59]} 10. g5 {[%clk 0:02:30]}  Nd5 {[%clk 0:02:49]} 11. O-O {[%clk 0:02:30]}  Nxc3 {[%clk 0:02:41]} 12. bxc3 {[%clk 0:02:31]}  O-O-O {[%clk 0:02:41]} 13. Qf3 {[%clk 0:02:28]}  Qf5 {[%clk 0:02:37]} 14. Bf4 {[%clk 0:02:26]}  h6 {[%clk 0:02:24]} 15. Qg3 {[%clk 0:02:06]}  Qg4 {[%clk 0:02:11]} 16. Qxg4 {[%clk 0:01:52]}  Bxg4 {[%clk 0:02:10]} 17. gxh6 {[%clk 0:01:53]}  g6 {[%clk 0:02:10]} 18. Rfe1 {[%clk 0:01:28]}  e6 {[%clk 0:02:08]} 19. Rab1 {[%clk 0:01:28]}  Bxh6 {[%clk 0:02:03]} 20. Be5 {[%clk 0:01:28]}  Rhf8 {[%clk 0:01:12]} 21. h3 {[%clk 0:01:24]}  Bf5 {[%clk 0:01:10]} 22. Re2 {[%clk 0:01:24]}  f6 {[%clk 0:01:01]} 23. Bg3 {[%clk 0:01:24]}  Rf7 {[%clk 0:01:01]} 24. a4 {[%clk 0:01:19]}  a5 {[%clk 0:00:53]} 25. Rb6 {[%clk 0:01:01]}  Bf8 {[%clk 0:00:53]} 26. Re1 {[%clk 0:00:58]}  Bd6 {[%clk 0:00:53]} 27. Rb2 {[%clk 0:00:56]}  Rh7 {[%clk 0:00:46]} 28. Reb1 {[%clk 0:00:39]}  Bxg3 {[%clk 0:00:28]} 29. fxg3 {[%clk 0:00:39]}  Bxh3 {[%clk 0:00:26]} 30. Bxc6 {[%clk 0:00:39]}  Bf5 {[%clk 0:00:12]} 31. Bxb7+ {[%clk 0:00:38]}  Kd7 {[%clk 0:00:12]} 32. Bf3 {[%clk 0:00:36]}  Ke8 {[%clk 0:00:13]} 33. g4 {[%clk 0:00:35]}  Rh3 {[%clk 0:00:13]} 34. Kg2 {[%clk 0:00:35]}  Bxg4 {[%clk 0:00:13]} 35. Bxg4 {[%clk 0:00:36]}  Rxc3 {[%clk 0:00:13]} 36. Re1 {[%clk 0:00:30]}  f5 {[%clk 0:00:11]} 37. Be2 {[%clk 0:00:27]}  Rxd4 {[%clk 0:00:11]} 38. Bd3 {[%clk 0:00:27]}  Kf7 {[%clk 0:00:10]} 39. Rb7+ {[%clk 0:00:27]}  Kf6 {[%clk 0:00:10]} 40. Rb6 {[%clk 0:00:27]}  Rxa4 {[%clk 0:00:09]} 41. Rexe6+ {[%clk 0:00:27]}  Kg5 {[%clk 0:00:10]} 42. Rxg6+ {[%clk 0:00:28]}  Kf4 {[%clk 0:00:10]} 43. Rb5 {[%clk 0:00:28]}  Ra2 {[%clk 0:00:07]} 44. Rxf5+ {[%clk 0:00:23]}  Ke3 {[%clk 0:00:08]} 45. Rf2 {[%clk 0:00:20]}  a4 {[%clk 0:00:05]} 46. Rg4 {[%clk 0:00:19]} 1-0


[Site "https://www.chess.com"]